bitfinex/quotes_BTCUSD_20251120
["timestamp","ask_amount","ask_price","bid_price","bid_amount"]
[1763658705678,0.02202,87162.0,87160.0,0.005]
[1763658705886,0.01999998,87160.0,87150.0,0.10364]
[1763658706295,3.0,87158.0,87150.0,0.10364]
[1763658706434,0.04518,87159.0,87150.0,0.10364]
[1763658706634,3.0,87157.0,87150.0,0.10364]
[1763658706855,3.0,87155.0,87150.0,0.10364]
[1763658707305,0.01999998,87160.0,87128.0,0.025]
[1763658707306,0.00999999,87140.0,87128.0,0.025]
[1763658707500,0.00999999,87140.0,87120.0,0.1]
[1763658707501,3.0,87134.0,87121.0,0.01377394]
[1763658707676,3.0,87134.0,87120.0,0.1]
[1763658707885,0.00999999,87120.0,87110.0,4.5e-05]
[1763658708091,0.01999998,87120.0,87110.0,4.5e-05]
[1763658708289,3.0,87119.0,87110.0,4.5e-05]
[1763658708504,0.00012535,87119.0,87110.0,4.5e-05]
[1763658709396,0.00012535,87119.0,87111.0,0.09689591]
[1763658709598,0.00012535,87119.0,87112.0,0.01377536]
[1763658709715,0.00012535,87119.0,87110.0,4.5e-05]
[1763658709716,0.00012535,87119.0,87118.0,0.0019169]
[1763658710320,0.01999998,87130.0,87118.0,0.0019169]
[1763658710533,0.01999998,87130.0,87118.0,0.00041753]
[1763658710772,0.02753798,87130.0,87118.0,0.00041753]
[1763658711199,0.04518,87129.0,87118.0,0.00041753]
[1763658711413,0.01999998,87130.0,87118.0,0.00041753]
[1763658712170,0.0102,87129.0,87118.0,0.00041753]
[1763658712527,0.00999999,87130.0,87118.0,0.00041753]
[1763658712528,0.01999998,87130.0,87118.0,0.00041753]
[1763658713714,0.001,87121.0,87118.0,0.00041753]
[1763658714666,0.04518,87120.0,87118.0,0.00041753]
[1763658715630,3.0,87119.0,87118.0,0.00041753]
[1763658716020,3.10916494,87119.0,87118.0,0.00233443]
[1763658716234,3.15434494,87119.0,87118.0,0.00233443]
[1763658716448,3.17225788,87119.0,87118.0,0.00233443]
[1763658716665,3.17225788,87119.0,87110.0,4.5e-05]
[1763658716913,3.17225788,87119.0,87100.0,0.053]
[1763658716914,3.0,87109.0,87100.0,0.053]
[1763658717122,0.01999998,87110.0,87100.0,0.053]
[1763658717123,3.0,87104.0,87100.0,0.053]
[1763658717330,0.01999998,87080.0,87065.0,0.00408]
[1763658717536,0.01999998,87080.0,87070.0,0.01378201]
[1763658717537,0.00999999,87080.0,87070.0,0.01378201]
[1763658717742,0.01999998,87080.0,87059.0,0.04303]
[1763658717930,0.00999999,87080.0,87060.0,0.58235693]
[1763658718271,0.00999999,87080.0,87070.0,0.04303]
[1763658718622,0.00042011,87080.0,87077.0,0.01148408]
[1763658718830,0.00999999,87100.0,87078.0,0.00408]
[1763658719007,0.00999999,87090.0,87078.0,0.00012535]
[1763658719212,0.01999998,87090.0,87078.0,0.00012535]
[1763658720754,0.00999999,87100.0,87080.0,0.56857334]
[1763658720952,0.00999999,87100.0,87081.0,0.04303]
[1763658721194,0.01999998,87100.0,87082.0,0.01378011]
[1763658721328,0.00999999,87120.0,87093.0,0.01148197]
[1763658721529,0.00999999,87150.0,87120.0,0.01139]
[1763658721735,0.00999999,87150.0,87120.0,0.57996334]
[1763658721981,0.01999998,87130.0,87109.0,0.02236]
[1763658722300,0.04518,87149.0,87050.0,0.20012]
[1763658722301,0.00999999,87090.0,87087.0,0.00408]
[1763658722475,0.01999998,87100.0,87087.0,0.00408]
[1763658722675,0.00999999,87100.0,87088.0,0.04431]
[1763658722876,0.01999998,87110.0,87099.0,0.0005974]
[1763658723197,0.00999999,87130.0,87101.0,0.323]
[1763658723541,0.01999998,87140.0,87121.0,0.02278]
[1763658723674,0.01999998,87140.0,87122.0,0.04839]
[1763658723873,0.00999999,87130.0,87122.0,0.04431]
[1763658724131,0.00999999,87130.0,87110.0,0.61288334]
[1763658724278,0.01999998,87120.0,87110.0,0.0002515]
[1763658724662,0.01999998,87120.0,87110.0,0.00037685]
[1763658724882,0.00999999,87120.0,87112.0,0.09689591]
[1763658725096,0.00999999,87140.0,87112.0,0.09089591]
[1763658725312,0.02202,87168.0,87110.0,0.56895019]
[1763658725313,0.00999999,87120.0,87110.0,0.00037685]
[1763658725736,0.01999998,87120.0,87110.0,0.00037685]
[1763658726335,0.00999999,87120.0,87111.0,0.02278]
[1763658726533,0.01999998,87120.0,87110.0,0.00037685]
[1763658727687,0.04498,87137.0,87110.0,0.00037685]
[1763658727688,0.00999999,87130.0,87111.0,0.09689591]
[1763658727888,0.00999999,87130.0,87110.0,0.00037685]
[1763658727889,0.00999999,87120.0,87112.0,0.09689591]
[1763658728091,0.00999999,87120.0,87113.0,0.09689591]
[1763658728301,0.00999999,87140.0,87113.0,0.09689591]
[1763658728649,0.04498,87163.0,87114.0,0.04431]
[1763658728650,0.01999998,87130.0,87114.0,0.04431]
[1763658728857,0.01999998,87130.0,87110.0,0.00037685]
[1763658728858,0.01999998,87130.0,87115.0,0.00408]
[1763658729059,0.01999998,87130.0,87117.0,0.09689591]
[1763658729275,0.01999998,87130.0,87110.0,0.00037685]
[1763658729276,0.00999999,87130.0,87116.0,0.04431]
[1763658729507,0.00999999,87120.0,87110.0,0.00037685]
[1763658729708,0.00999999,87120.0,87117.0,0.09689591]
[1763658729900,0.00999999,87130.0,87117.0,0.09689591]
[1763658730107,0.01999998,87130.0,87110.0,0.00037685]
[1763658730299,0.01655646,87120.0,87110.0,0.00037685]
[1763658730998,0.06153646,87120.0,87110.0,0.00037685]
[1763658731186,0.01655646,87120.0,87110.0,0.00037685]
[1763658731346,0.06025742,87119.0,87110.0,0.00037685]
[1763658731527,0.06025742,87119.0,87110.0,0.00137685]
[1763658731936,0.06025742,87119.0,87110.0,0.00037685]
[1763658732161,0.01800363,87117.0,87110.0,0.00037685]
[1763658732365,0.01721842,87116.0,87110.0,0.00037685]
[1763658733142,0.01721861,87115.0,87110.0,0.00037685]
[1763658733580,0.04498,87114.0,87110.0,0.00037685]
[1763658733804,0.01721901,87113.0,87110.0,0.00037685]
[1763658734247,0.001,87119.0,87110.0,0.00037685]
[1763658734248,0.01821782,87119.0,87110.0,0.00037685]
[1763658734466,0.04498,87118.0,87110.0,0.00037685]
[1763658734676,0.001,87115.0,87110.0,0.00037685]
[1763658734904,0.01821861,87115.0,87110.0,0.00037685]
[1763658735328,0.04498,87114.0,87110.0,0.00037685]
[1763658735540,0.11411492,87113.0,87110.0,0.00037685]
[1763658735952,0.04498,87112.0,87110.0,0.00037685]
[1763658736184,0.001,87113.0,87110.0,0.00037685]
[1763658736394,0.04498,87112.0,87110.0,0.00037685]
[1763658737292,0.04598,87112.0,87110.0,0.00037685]
[1763658737493,3.02047655,87111.0,87110.0,0.00037685]
[1763658737699,3.02047655,87111.0,87060.0,0.77735151]
[1763658737700,0.00999999,87080.0,87050.0,0.00012]
[1763658737840,0.01668244,87080.0,87053.0,0.08828304]
[1763658738040,0.02202,87079.0,87053.0,0.10799304]
[1763658738492,0.0205016,87079.0,87053.0,0.10799304]
[1763658739073,0.0205016,87079.0,87054.0,0.09689591]
[1763658739275,0.0205016,87079.0,87053.0,0.10799304]
[1763658739276,0.01668244,87080.0,87055.0,0.15499029]
[1763658739463,0.01668244,87080.0,87055.0,0.14120591]
[1763658740214,0.01668244,87080.0,87053.0,0.10799304]
[1763658740474,0.01668244,87080.0,87070.0,0.09689591]
[1763658740717,0.01668244,87080.0,87071.0,0.05809185]
[1763658740718,0.00012598,87080.0,87071.0,0.05809185]
[1763658740936,0.00012598,87080.0,87071.0,0.04431]
[1763658741190,0.00655647,87090.0,87071.0,0.04431]
[1763658741191,0.00655647,87090.0,87080.0,0.77735151]
[1763658741434,0.00655647,87090.0,87085.0,0.09689591]
[1763658741725,0.01655646,87080.0,87069.0,0.00292614]
[1763658741944,0.01655646,87080.0,87070.0,0.001]
[1763658742153,0.04498,87079.0,87070.0,0.001]
[1763658742376,0.00655647,87060.0,87054.0,0.09689591]
[1763658742560,0.00042037,87060.0,87058.0,0.09689591]
[1763658742794,0.00042037,87060.0,87059.0,0.01274]
[1763658742993,0.00042037,87060.0,87059.0,0.10963591]
[1763658743201,0.00042037,87060.0,87059.0,0.01274]
[1763658743405,0.00655647,87050.0,87041.0,0.09189591]
[1763658744165,0.01655646,87050.0,87040.0,0.08758082]
[1763658744370,0.00785,87057.0,87020.0,0.77836441]
[1763658744371,0.01187546,87040.0,87020.0,0.77836441]
[1763658744579,0.00531899,87050.0,87030.0,0.8436291]
[1763658744751,0.00785,87057.0,87030.0,0.93017694]
[1763658744752,0.01187546,87040.0,87030.0,0.93017694]
[1763658744966,0.00531899,87040.0,87030.0,0.92129694]
[1763658745279,0.01187546,87040.0,87030.0,0.14394543]
[1763658745475,0.00785,87057.0,87030.0,0.14394543]
[1763658745476,0.01187546,87050.0,87031.0,0.02266819]
[1763658745687,0.00655647,87040.0,87031.0,0.00888]
[1763658745888,0.00655647,87040.0,87030.0,0.92129694]
[1763658745889,0.01187546,87040.0,87030.0,0.05739759]
[1763658746478,0.01187546,87040.0,87030.0,0.0002]
[1763658747124,0.00408,87055.0,87002.0,0.0099572]
[1763658747125,0.01187546,87010.0,87002.0,0.0099572]
[1763658747339,0.00655647,87010.0,87003.0,0.01379262]
[1763658747593,0.01187546,87020.0,87004.0,0.01379246]
[1763658747823,0.00655647,87020.0,87002.0,0.0099572]
[1763658747954,0.00655647,87010.0,87003.0,0.01379262]
[1763658748152,0.00531899,87020.0,87003.0,0.01379262]
[1763658748153,0.00655647,87020.0,87003.0,0.01379262]
[1763658748365,0.01229531,87020.0,87004.0,0.09689591]
[1763658748574,0.01229531,87020.0,87005.0,0.01091024]
[1763658748786,0.01229531,87020.0,87006.0,0.01149346]
[1763658748969,0.01229531,87020.0,87002.0,0.0099572]
[1763658748970,0.0018874,87030.0,87024.0,0.01149108]
[1763658749169,0.09689591,87100.0,87034.0,0.01148976]
[1763658749170,0.00720639,87060.0,87034.0,0.01148976]
[1763658749379,0.00720639,87060.0,87041.0,0.01148883]
[1763658749831,0.09689591,87085.0,87041.0,0.01148883]
[1763658749832,0.00720639,87070.0,87059.0,0.00160437]
[1763658750051,0.00234001,87069.0,87063.0,0.22971732]
[1763658750263,0.00720639,87070.0,87069.0,0.22970287]
[1763658750264,0.0018874,87070.0,87069.0,0.22970287]
[1763658750488,0.00720639,87090.0,87082.0,0.01148342]
[1763658750710,0.00531899,87090.0,87082.0,0.01122815]
[1763658750927,0.00720639,87090.0,87082.0,0.01122815]
[1763658751154,0.00720639,87080.0,87061.0,0.01169214]
[1763658751383,0.0018874,87070.0,87061.0,0.01181812]
[1763658751599,0.00531899,87080.0,87061.0,0.02560155]
[1763658751600,0.00720639,87080.0,87061.0,0.02560155]
[1763658751803,0.01324,87089.0,87061.0,0.00012598]
[1763658751804,0.00720639,87070.0,87061.0,0.00012598]
[1763658752025,0.00250639,87070.0,87061.0,0.00012598]
[1763658752257,0.00250639,87070.0,87062.0,0.22972134]
[1763658752461,0.00250639,87090.0,87079.0,0.2296765]
[1763658752664,0.00250639,87100.0,87089.0,0.0114825]
[1763658752864,0.8094315,87150.0,87097.0,0.01148145]
[1763658752865,0.00250639,87110.0,87097.0,0.01148145]
[1763658753068,0.02208,87150.0,87104.0,0.0116]
[1763658753069,0.00250639,87150.0,87104.0,0.0116]
[1763658753342,0.00250639,87130.0,87105.0,0.00408]
[1763658753601,0.00250639,87130.0,87120.0,0.46360152]
[1763658753879,0.09689591,87148.0,87104.0,0.02282815]
[1763658753880,0.00250639,87110.0,87106.0,0.2296038]
[1763658754020,0.00250639,87110.0,87104.0,0.01122815]
[1763658754234,0.00250639,87110.0,87095.0,0.01122815]
[1763658754381,0.00250639,87110.0,87103.0,0.22961164]
[1763658754582,0.00392702,87130.0,87124.0,0.22955532]
[1763658754782,0.00142063,87130.0,87129.0,0.323]
[1763658754984,0.01800129,87167.0,87129.0,0.323]
[1763658754985,0.01800129,87167.0,87166.0,0.22944726]
[1763658755184,0.00012618,87167.0,87158.0,0.32708]
[1763658755388,0.00012618,87167.0,87166.0,0.01122815]
[1763658755591,0.00012618,87167.0,87166.0,0.22944726]
[1763658755813,0.00012618,87167.0,87166.0,0.04012]
[1763658756063,0.00012618,87167.0,87163.0,0.24068193]
[1763658756267,0.00277553,87183.0,87163.0,0.24068193]
[1763658756268,0.00277553,87183.0,87180.0,0.01147052]
[1763658756412,0.00277553,87183.0,87180.0,0.01122815]
[1763658756624,0.00277553,87183.0,87180.0,0.05134815]
[1763658756827,0.00277553,87183.0,87180.0,0.01122815]
[1763658757806,0.00250639,87180.0,87166.0,0.01122815]
[1763658758047,0.00250639,87180.0,87166.0,0.01135433]
[1763658758806,0.00250639,87180.0,87167.0,0.09689591]
[1763658759016,0.00250639,87180.0,87166.0,0.01135433]
[1763658759492,0.00250639,87180.0,87170.0,0.63293096]
[1763658759798,0.00250639,87180.0,87167.0,0.02570477]
[1763658759988,0.00250639,87180.0,87166.0,0.01235433]
[1763658760351,0.01971217,87180.0,87166.0,0.00112618]
[1763658760550,0.02801994,87180.0,87166.0,0.00112618]
[1763658760750,0.01971217,87180.0,87166.0,0.00112618]
[1763658760997,0.00277553,87183.0,87170.0,0.63293096]
[1763658761207,0.00277553,87183.0,87171.0,0.04012]
[1763658761628,0.00277553,87183.0,87170.0,0.64415911]
[1763658761629,0.00250639,87180.0,87170.0,0.01122815]
[1763658762240,0.00250639,87180.0,87171.0,0.09689591]
[1763658762470,0.00250639,87180.0,87171.0,0.09789591]
[1763658762680,3.04105,87205.0,87171.0,0.001]
[1763658762961,3.04105,87205.0,87170.0,0.01122815]
[1763658762962,0.05011379,87199.0,87170.0,0.01122815]
[1763658763168,0.01642799,87198.0,87170.0,0.01122815]
[1763658763399,0.34339998,87220.0,87170.0,0.01122815]
[1763658763400,0.04105,87207.0,87170.0,0.01222815]
[1763658763530,0.01720065,87206.0,87170.0,0.01222815]
[1763658763728,0.09689591,87203.0,87170.0,0.01222815]
[1763658763939,3.0,87201.0,87170.0,0.01222815]
[1763658764273,0.00448,87220.0,87171.0,0.36312]
[1763658764501,0.01719946,87212.0,87172.0,0.04012]
[1763658764677,0.01715219,87212.0,87172.0,0.04012]
[1763658764880,0.0004,87220.0,87190.0,0.63311372]
[1763658765056,0.0004,87220.0,87190.0,0.01122815]
[1763658765265,0.01916759,87217.0,87190.0,0.01122815]
[1763658765478,0.06425795,87216.0,87190.0,0.01122815]
[1763658765681,0.01798993,87211.0,87190.0,0.01122815]
[1763658765911,0.01798993,87211.0,87191.0,0.36312]
[1763658766222,0.01798757,87214.0,87192.0,0.04012]
[1763658766668,0.01798757,87214.0,87193.0,0.04012]
[1763658766669,0.01793492,87214.0,87193.0,0.04012]
[1763658766872,0.001,87217.0,87197.0,0.09689591]
[1763658767057,0.001,87217.0,87199.0,0.09689591]
[1763658767450,0.001,87217.0,87200.0,0.04012]
[1763658767654,0.0004,87220.0,87200.0,1.02102166]
[1763658767918,0.00082029,87220.0,87214.0,0.09689591]
[1763658768255,0.00082029,87220.0,87199.0,0.09689591]
[1763658768256,0.00082029,87220.0,87204.0,0.04012]
[1763658768468,0.04105,87219.0,87176.0,0.02212]
[1763658768690,0.01719828,87218.0,87187.0,0.09689591]
[1763658768890,0.04105,87219.0,87187.0,0.09689591]
[1763658768891,0.02380844,87219.0,87187.0,0.09689591]
[1763658769105,0.02380844,87219.0,87189.0,0.09689591]
[1763658769475,3.09689591,87218.0,87169.0,0.02497975]
[1763658769606,3.0,87217.0,87166.0,0.08709274]
[1763658769793,3.0,87216.0,87176.0,0.09689591]
[1763658769989,0.001,87219.0,87189.0,0.09689591]
[1763658770195,0.00082029,87220.0,87177.0,0.02497975]
[1763658770572,0.00082029,87220.0,87178.0,0.01376494]
[1763658770573,0.00025115,87191.0,87178.0,0.01376494]
[1763658770709,0.00025115,87191.0,87173.0,0.09689591]
[1763658770909,0.00025115,87191.0,87174.0,0.04012]
[1763658771365,0.00025115,87191.0,87187.0,0.09689591]
[1763658771579,0.00025115,87191.0,87174.0,0.06509975]
[1763658771580,0.00025115,87191.0,87181.0,0.01122815]
[1763658771780,0.00025115,87191.0,87182.0,0.0137643]
[1763658771982,0.00025115,87191.0,87181.0,0.01122815]
[1763658773301,0.00025115,87191.0,87175.0,0.07689591]
[1763658773517,0.00025115,87191.0,87175.0,0.08812406]
[1763658773822,0.00025115,87191.0,87176.0,0.04012]
[1763658774352,0.00025115,87191.0,87181.0,0.001]
[1763658774855,0.00025115,87191.0,87182.0,0.02212]
[1763658775036,0.0004,87220.0,87190.0,0.323]
[1763658775239,0.00082029,87220.0,87210.0,0.09689591]
[1763658775641,0.00082029,87220.0,87211.0,0.06224]
[1763658775837,0.00082029,87220.0,87211.0,0.02212]
[1763658776235,0.00082029,87220.0,87198.0,0.04012]
[1763658776236,0.00082029,87220.0,87200.0,0.01122815]
[1763658776438,0.00082029,87220.0,87204.0,0.09689591]
[1763658776810,0.00082029,87220.0,87219.0,0.02212]
[1763658777013,0.00082029,87220.0,87211.0,0.02212]
[1763658777429,0.00082029,87220.0,87218.0,0.09689591]
[1763658778085,0.00082029,87220.0,87219.0,0.04012]
[1763658778629,0.00082029,87220.0,87219.0,0.09689591]
[1763658778832,0.00082029,87220.0,87215.0,0.00812406]
[1763658779310,0.00082029,87220.0,87219.0,0.001]
[1763658779663,0.00082029,87220.0,87205.0,0.323]
[1763658780079,0.00082029,87220.0,87215.0,0.001]
[1763658780352,0.13794591,87219.0,87215.0,0.001]
[1763658780554,0.01428462,87218.0,87215.0,0.001]
[1763658780758,0.00082029,87220.0,87215.0,0.001]
[1763658781184,0.04105,87219.0,87215.0,0.001]
[1763658781393,0.04105,87219.0,87176.0,0.01162909]
[1763658781394,3.0,87215.0,87185.0,0.00812406]
[1763658781568,0.04969988,87210.0,87159.0,0.00812406]
[1763658781802,0.00408,87209.0,87159.0,0.00812406]
[1763658782002,0.04969988,87193.0,87138.0,0.06224]
[1763658782212,3.0,87194.0,87138.0,0.06224]
[1763658782469,0.01999998,87200.0,87130.0,0.10501997]
[1763658782470,0.01147157,87172.0,87130.0,0.10501997]
[1763658782674,0.01147157,87172.0,87092.0,0.10088513]
[1763658782675,0.0113,87131.0,87096.0,0.0428]
[1763658782845,0.0113,87131.0,87080.0,0.65502372]
[1763658782846,3.00408,87130.0,87080.0,0.65502372]
[1763658783047,3.00408,87130.0,87080.0,0.02191]
[1763658783048,3.11493394,87129.0,87080.0,0.02191]
[1763658783255,0.01538,87130.0,87118.0,0.00319696]
[1763658783256,3.0,87127.0,87118.0,0.00319696]
[1763658783460,0.00408,87126.0,87118.0,0.00319696]
[1763658783668,0.01147223,87167.0,87118.0,0.00319696]
[1763658783669,0.00408,87136.0,87118.0,0.00319696]
[1763658783853,0.00408,87136.0,87105.0,0.0428]
[1763658783854,0.0113,87155.0,87104.0,0.08601411]
[1763658784055,3.0,87154.0,87110.0,0.63311372]
[1763658784281,0.00999999,87150.0,87089.0,0.0428]
[1763658784420,0.04969988,87144.0,87089.0,0.0428]
[1763658784618,3.0,87142.0,87091.0,0.0997928]
[1763658784875,0.01999998,87150.0,87080.0,0.65910372]
[1763658784876,0.08601411,87122.0,87080.0,0.65910372]
[1763658785076,0.08601411,87122.0,87081.0,0.323]
[1763658785374,0.00408,87123.0,87090.0,0.71912783]
[1763658785574,0.00408,87123.0,87090.0,0.08601411]
[1763658785875,0.00408,87123.0,87076.0,0.09689591]
[1763658785876,3.0,87121.0,87076.0,0.09689591]
[1763658786080,3.0,87121.0,87060.0,0.02212]
[1763658786081,3.0,87120.0,87060.0,0.02212]
[1763658786277,0.04969988,87118.0,87060.0,0.02212]
[1763658786453,0.08601411,87108.0,87071.0,0.08601411]
[1763658786638,0.0113,87119.0,87071.0,0.08601411]
[1763658786639,0.08601411,87119.0,87072.0,0.01378169]
[1763658786863,0.08601411,87119.0,87060.0,0.02212]
[1763658786864,3.0,87117.0,87070.0,0.63331372]
[1763658787205,0.00408,87116.0,87071.0,0.3658]
[1763658787776,0.00408,87116.0,87070.0,0.0002]
[1763658787777,3.0,87114.0,87070.0,0.0002]
[1763658787978,0.00999999,87100.0,87070.0,0.0002]
[1763658788182,3.0,87092.0,87070.0,0.0002]
[1763658788519,3.0,87083.0,87070.0,0.0002]
[1763658788752,3.0,87074.0,87070.0,0.0002]
[1763658788929,3.0,87070.0,87010.0,0.63311372]
[1763658789085,3.0,87070.0,87010.0,0.67591372]
[1763658789293,3.0,87068.0,87017.0,0.00012618]
[1763658789683,3.0,87061.0,87017.0,0.00012618]
[1763658790080,0.01999998,87070.0,87017.0,0.00012618]
[1763658790081,3.0,87059.0,87017.0,0.00012618]
[1763658790281,2.99655399,87055.0,87017.0,0.00012618]
[1763658790600,2.99655399,87053.0,87017.0,0.00012618]
[1763658790979,0.07463244,87043.0,87017.0,0.00012618]
[1763658791362,0.00408,87054.0,87017.0,0.00012618]
[1763658791363,0.01801849,87046.0,87020.0,0.63311372]
[1763658791562,0.01801849,87046.0,87017.0,0.00012618]
[1763658791973,0.01801849,87046.0,87020.0,0.63311372]
[1763658792189,0.01801849,87046.0,87019.0,0.07463244]
[1763658792190,0.01801849,87046.0,87030.0,0.63311372]
[1763658792523,0.01801849,87046.0,87021.0,0.3658]
[1763658792651,0.01801849,87046.0,87021.0,0.0428]
[1763658792851,0.01801849,87046.0,87045.0,0.00229671]
[1763658793251,0.01801849,87046.0,87006.0,0.00812406]
[1763658793252,3.0,87045.0,87006.0,0.00812406]
[1763658793458,0.07463244,87031.0,87004.0,0.00812406]
[1763658793663,3.0,87030.0,87004.0,0.00812406]
[1763658793866,3.0,87030.0,87002.0,0.0099572]
[1763658793867,3.0,87028.0,87002.0,0.0099572]
[1763658794081,3.0,87028.0,87004.0,0.00041985]
[1763658794290,0.01518,87029.0,87004.0,0.00041985]
[1763658794291,0.0111,87022.0,87004.0,0.00041985]
[1763658794490,2.99745554,87019.0,87004.0,0.00041985]
[1763658794669,2.99745554,87025.0,87004.0,0.00041985]
[1763658794866,0.01999998,87030.0,87004.0,0.00041985]
[1763658794867,0.00999999,87020.0,87004.0,0.00041985]
[1763658795158,2.99745554,87018.0,87004.0,0.00041985]
[1763658795350,0.07463244,87005.0,87004.0,0.00041985]
[1763658795683,3.0,87018.0,87004.0,0.00041985]
[1763658795967,0.01801849,87046.0,87004.0,0.00041985]
[1763658796259,2.99892306,87029.0,87004.0,0.00041985]
[1763658796835,0.011,87045.0,87004.0,0.00041985]
[1763658796836,0.00408,87038.0,87004.0,0.05701231]
[1763658797035,0.00856,87037.0,87004.0,0.00041985]
[1763658797240,0.00408,87038.0,87004.0,0.00041985]
[1763658797241,0.001,87020.0,87004.0,0.00041985]
[1763658797645,0.00408,87038.0,87004.0,0.00041985]
[1763658797845,0.00872724,87037.0,87004.0,0.00041985]
[1763658798026,0.001,87029.0,87004.0,0.01421231]
[1763658798228,0.001,87029.0,87005.0,0.0428]
[1763658798430,0.00408,87038.0,87004.0,0.00041985]
[1763658798664,0.001,87020.0,87004.0,0.00041985]
[1763658799026,0.00856,87037.0,87004.0,0.00041985]
[1763658799027,0.00856,87037.0,87030.0,0.00047221]
[1763658799231,0.00408,87038.0,87009.0,0.00812406]
[1763658799430,0.00787124,87037.0,87009.0,0.00812406]
[1763658799656,0.07463244,87026.0,87009.0,0.00812406]
[1763658799860,0.08319244,87026.0,87009.0,0.00812406]
[1763658800059,0.08319244,87026.0,87004.0,0.00041985]
[1763658800265,0.00856,87025.0,87004.0,0.00041985]
[1763658800890,0.07463244,87009.0,87004.0,0.00041985]
[1763658801091,0.05771542,87025.0,87004.0,0.00041985]
[1763658801092,0.00856,87025.0,87004.0,0.00041985]
[1763658801266,0.07430582,87012.0,87004.0,0.00041985]
[1763658801696,0.01802831,87011.0,87004.0,0.00041985]
[1763658801891,0.00856,87011.0,87004.0,0.00041985]
[1763658802068,0.00856,87010.0,87004.0,0.00041985]
[1763658802271,3.0,87009.0,87004.0,0.00041985]
[1763658802473,0.01,87007.0,87000.0,31.82526071]
[1763658802675,0.01,87002.0,87000.0,31.82526071]
[1763658803095,0.01264,87001.0,87000.0,31.82526071]
[1763658803560,3.06179542,87001.0,87000.0,31.82526071]
[1763658803710,3.17672936,87001.0,87000.0,31.82526071]
[1763658804122,3.06179542,87001.0,87000.0,31.82526071]
[1763658804282,3.11389791,87001.0,87000.0,31.82526071]
[1763658804654,3.78698032,87001.0,87000.0,31.82526071]
[1763658804863,3.59316833,87001.0,87000.0,31.82526071]
[1763658805100,3.59316833,87001.0,87000.0,31.79887507]
[1763658805292,3.07575095,87001.0,87000.0,31.79887507]
[1763658805570,3.13193344,87001.0,87000.0,31.79887507]
[1763658805804,3.45493344,87001.0,87000.0,31.79887507]
[1763658806006,3.45493344,87001.0,87000.0,31.47305127]
[1763658806007,3.57513344,87001.0,87000.0,31.47305127]
[1763658806176,3.69006738,87001.0,87000.0,31.18358212]
[1763658806319,3.69006738,87001.0,87000.0,31.07226414]
[1763658806524,3.56986738,87001.0,87000.0,30.80647447]
[1763658806802,3.56986738,87001.0,87000.0,30.74138368]
[1763658807002,3.56986738,87001.0,87000.0,30.54611131]
[1763658807437,3.45493344,87001.0,87000.0,29.9898576]
[1763658807626,3.40577802,87001.0,87000.0,29.9898576]
[1763658807826,3.40577802,87001.0,87000.0,28.82349838]
[1763658808146,3.53597802,87001.0,87000.0,28.82349838]
[1763658808372,3.53597802,87001.0,87000.0,17.74743273]
[1763658808588,0.42575287,87001.0,87000.0,17.14143273]
[1763658808795,2.48381993,87001.0,87000.0,17.14143273]
[1763658808968,0.55401993,87001.0,87000.0,13.74253962]
[1763658809167,3.61140779,87001.0,87000.0,12.07425313]
[1763658809420,0.64144949,87001.0,87000.0,8.48234699]
[1763658809644,0.64144949,87001.0,87000.0,6.32742469]
[1763658809906,0.60539472,87001.0,87000.0,5.98266167]
[1763658810150,0.60539472,87001.0,87000.0,4.19051619]
[1763658810151,0.61140864,87001.0,87000.0,4.19051619]
[1763658810333,0.60796041,87001.0,87000.0,2.34949384]
[1763658810491,2.74973653,87001.0,87000.0,0.48368789]
[1763658810673,0.62307803,87001.0,87000.0,0.44910576]
[1763658810874,3.62307803,87001.0,87000.0,0.16632363]
[1763658811075,3.62307803,87001.0,87000.0,0.13173352]
[1763658811076,3.57097554,87001.0,87000.0,0.13173352]
[1763658811278,3.57100872,87001.0,87000.0,0.05141711]
[1763658811485,3.57100872,87001.0,86900.0,0.001]
[1763658811486,0.01804628,86898.0,86886.0,0.03419]
[1763658811704,0.00408,86897.0,86887.0,0.07463244]
[1763658811906,0.01804628,86898.0,86891.0,0.06361116]
[1763658812081,0.32349,86954.0,86897.0,0.03419]
[1763658812082,0.00408,86943.0,86897.0,0.03419]
[1763658812296,0.00408,86943.0,86901.0,0.05210249]
[1763658812496,0.00408,86943.0,86903.0,0.01150708]
[1763658812725,0.00408,86943.0,86898.0,0.00595088]
[1763658812726,0.00449874,86943.0,86921.0,0.05210249]
[1763658812928,0.00449874,86943.0,86920.0,0.63311372]
[1763658812929,0.00449874,86943.0,86927.0,0.09781977]
[1763658813131,0.00408,86944.0,86928.0,0.05210249]
[1763658813307,0.00408,86947.0,86929.0,0.01499223]
[1763658813508,0.00408,86947.0,86928.0,0.03491874]
[1763658813707,0.07409,86973.0,86936.0,0.09781977]
[1763658813955,0.00408,86972.0,86929.0,0.07411]
[1763658814113,0.01,86966.0,86928.0,0.00041874]
[1763658814319,0.01,86962.0,86928.0,0.00041874]
[1763658814534,0.01864,86929.0,86928.0,0.00041874]
[1763658814739,0.02272,86929.0,86928.0,0.00041874]
[1763658814931,0.09681,86929.0,86928.0,0.00041874]
[1763658815332,0.09681,86929.0,86880.0,0.57281874]
[1763658815690,0.07409,86928.0,86881.0,0.15510164]
[1763658815852,0.04915542,86924.0,86881.0,0.05728187]
[1763658816055,0.09781977,86927.0,86882.0,0.09781977]
[1763658816258,0.09781977,86927.0,86882.0,0.07411]
[1763658816455,0.04915542,86924.0,86873.0,0.0345]
[1763658816635,0.04915542,86924.0,86874.0,0.11163287]
[1763658816838,0.01804755,86916.0,86874.0,0.11163287]
[1763658817069,0.01804755,86916.0,86897.0,0.00324829]
[1763658817244,0.01804755,86916.0,86870.0,0.74704062]
[1763658817245,0.08559,86915.0,86850.0,0.0345]
[1763658817447,0.07817,86915.0,86870.0,0.74704062]
[1763658817649,0.07817,86915.0,86871.0,0.01381358]
[1763658817860,0.07817,86915.0,86871.0,0.07411]
[1763658818061,0.07817,86915.0,86872.0,0.05210249]
[1763658818265,0.07817,86915.0,86874.0,0.05210249]
[1763658818464,0.07817,86915.0,86875.0,0.01381294]
[1763658818663,0.00408,86914.0,86875.0,0.06128439]
[1763658818882,0.00408,86914.0,86876.0,0.05210249]
[1763658819452,0.00408,86914.0,86878.0,0.05210249]
[1763658819658,0.00408,86913.0,86891.0,0.05210249]
[1763658819863,0.00408,86913.0,86893.0,0.05210249]
[1763658820093,0.00408,86913.0,86895.0,0.05210249]
[1763658820316,0.00408,86913.0,86897.0,0.05210249]
[1763658820765,0.00408,86913.0,86903.0,0.74704062]
[1763658820988,0.00408,86913.0,86892.0,0.0345]